[Event "Titled Tuesday Blitz March 29 Late 2022"]
[White "Cardoso Cardoso, Jose Gabriel"]
[Black "Mortazavi, Ali"]
[WhiteFideId "4430492"]
[BlackFideId "401323"]
[WhiteElo "2451"]
[BlackElo "2339"]
[Result "1-0"]
[Round "04"]
[TimeControl "180+1"]
[Date "2022.03.29"]
[WhiteClock "0:00:13"]
[BlackClock "0:00:11"]

1. Nf3 {[%clk 0:03:00]}  Nf6 {[%clk 0:02:59]} 2. c4 {[%clk 0:02:48]}  g6 {[%clk 0:02:58]} 3. Nc3 {[%clk 0:02:47]}  Bg7 {[%clk 0:02:59]} 4. e4 {[%clk 0:02:46]}  O-O {[%clk 0:02:59]} 5. d4 {[%clk 0:02:46]}  d6 {[%clk 0:03:00]} 6. h3 {[%clk 0:02:40]}  e5 {[%clk 0:02:59]} 7. d5 {[%clk 0:02:40]}  Nh5 {[%clk 0:02:59]} 8. g3 {[%clk 0:02:39]}  Na6 {[%clk 0:02:48]} 9. a3 {[%clk 0:01:48]}  f5 {[%clk 0:02:42]} 10. exf5 {[%clk 0:01:47]}  gxf5 {[%clk 0:02:41]} 11. Nh4 {[%clk 0:01:47]}  Nf6 {[%clk 0:02:38]} 12. Qc2 {[%clk 0:01:46]}  e4 {[%clk 0:02:33]} 13. Be3 {[%clk 0:01:44]}  Bd7 {[%clk 0:02:27]} 14. Be2 {[%clk 0:01:41]}  Nc5 {[%clk 0:02:12]} 15. Rd1 {[%clk 0:01:34]}  a5 {[%clk 0:02:10]} 16. b3 {[%clk 0:01:30]}  Kh8 {[%clk 0:01:50]} 17. Ng2 {[%clk 0:01:27]}  Qe8 {[%clk 0:01:30]} 18. Nf4 {[%clk 0:01:25]}  Qf7 {[%clk 0:01:25]} 19. O-O {[%clk 0:01:22]}  Rg8 {[%clk 0:01:24]} 20. Kh2 {[%clk 0:01:20]}  Rae8 {[%clk 0:01:23]} 21. b4 {[%clk 0:01:17]}  axb4 {[%clk 0:01:20]} 22. axb4 {[%clk 0:01:16]}  Na6 {[%clk 0:01:21]} 23. Qb3 {[%clk 0:01:10]}  h5 {[%clk 0:01:00]} 24. c5 {[%clk 0:00:53]}  Kh7 {[%clk 0:00:59]} 25. c6 {[%clk 0:00:46]}  Bc8 {[%clk 0:00:59]} 26. Ra1 {[%clk 0:00:40]}  h4 {[%clk 0:00:23]} 27. cxb7 {[%clk 0:00:38]}  Bxb7 {[%clk 0:00:23]} 28. Bxa6 {[%clk 0:00:37]}  hxg3+ {[%clk 0:00:23]} 29. fxg3 {[%clk 0:00:37]}  Bxa6 {[%clk 0:00:24]} 30. Rxa6 {[%clk 0:00:37]}  Nd7 {[%clk 0:00:22]} 31. Ne6 {[%clk 0:00:37]}  Ne5 {[%clk 0:00:21]} 32. Ng5+ {[%clk 0:00:37]}  Kg6 {[%clk 0:00:21]} 33. Nxf7 {[%clk 0:00:38]}  Kxf7 {[%clk 0:00:19]} 34. Rxf5+ {[%clk 0:00:37]}  Kg6 {[%clk 0:00:20]} 35. Rg5+ {[%clk 0:00:37]}  Kh7 {[%clk 0:00:20]} 36. Kg2 {[%clk 0:00:28]}  Nf3 {[%clk 0:00:20]} 37. Rg4 {[%clk 0:00:26]}  Rgf8 {[%clk 0:00:14]} 38. Nxe4 {[%clk 0:00:20]}  Ne1+ {[%clk 0:00:14]} 39. Kg1 {[%clk 0:00:19]}  Nf3+ {[%clk 0:00:13]} 40. Kh1 {[%clk 0:00:20]}  Ne1 {[%clk 0:00:13]} 41. Ng5+ {[%clk 0:00:15]}  Kg8 {[%clk 0:00:12]} 42. Ne6 {[%clk 0:00:15]}  Rf1+ {[%clk 0:00:12]} 43. Bg1 {[%clk 0:00:14]}  Rxe6 {[%clk 0:00:10]} 44. dxe6 {[%clk 0:00:14]}  Nf3 {[%clk 0:00:11]} 45. e7+ {[%clk 0:00:14]}  Kh7 {[%clk 0:00:11]} 46. Qxf3 {[%clk 0:00:14]}  Rxf3 {[%clk 0:00:11]} 47. e8=Q {[%clk 0:00:13]} 1-0


[Site "https://www.chess.com"]

[Event "Titled Tuesday Blitz March 29 Late 2022"]
[White "Caruana, Fabiano"]
[Black "Yuan, Qingyu"]
[WhiteFideId "2020009"]
[BlackFideId "8609772"]
[WhiteElo "2744"]
[BlackElo "2359"]
[Result "1-0"]
[Round "04"]
[TimeControl "180+1"]
[Date "2022.03.29"]
[WhiteClock "0:00:47"]
[BlackClock "0:00:15"]

1. d4 {[%clk 0:03:00]}  d5 {[%clk 0:02:59]} 2. Bf4 {[%clk 0:02:56]}  Nf6 {[%clk 0:02:55]} 3. e3 {[%clk 0:02:57]}  e6 {[%clk 0:02:54]} 4. Nf3 {[%clk 0:02:57]}  Bd6 {[%clk 0:02:52]} 5. Ne5 {[%clk 0:02:54]}  O-O {[%clk 0:02:44]} 6. Nd2 {[%clk 0:02:53]}  c5 {[%clk 0:02:42]} 7. c3 {[%clk 0:02:53]}  Qc7 {[%clk 0:02:38]} 8. Bd3 {[%clk 0:02:45]}  Nc6 {[%clk 0:02:21]} 9. Ndf3 {[%clk 0:02:38]}  Ne4 {[%clk 0:02:16]} 10. Bg3 {[%clk 0:02:33]}  cxd4 {[%clk 0:02:05]} 11. exd4 {[%clk 0:02:27]}  f6 {[%clk 0:02:00]} 12. Nxc6 {[%clk 0:02:26]}  bxc6 {[%clk 0:01:56]} 13. Qe2 {[%clk 0:02:14]}  Rb8 {[%clk 0:01:26]} 14. Bxd6 {[%clk 0:01:34]}  Nxd6 {[%clk 0:01:16]} 15. O-O {[%clk 0:01:33]}  c5 {[%clk 0:01:15]} 16. b3 {[%clk 0:01:28]}  Bd7 {[%clk 0:01:09]} 17. Rac1 {[%clk 0:01:25]}  g6 {[%clk 0:01:00]} 18. c4 {[%clk 0:01:21]}  dxc4 {[%clk 0:00:48]} 19. bxc4 {[%clk 0:01:22]}  Kg7 {[%clk 0:00:44]} 20. Rfd1 {[%clk 0:01:15]}  Rfc8 {[%clk 0:00:38]} 21. h3 {[%clk 0:01:13]}  Rb6 {[%clk 0:00:38]} 22. Qe3 {[%clk 0:01:02]}  cxd4 {[%clk 0:00:32]} 23. Nxd4 {[%clk 0:01:03]}  e5 {[%clk 0:00:27]} 24. c5 {[%clk 0:01:00]}  exd4 {[%clk 0:00:27]} 25. Qe7+ {[%clk 0:00:52]}  Nf7 {[%clk 0:00:24]} 26. cxb6 {[%clk 0:00:52]}  Qxc1 {[%clk 0:00:23]} 27. Rxc1 {[%clk 0:00:53]}  Rxc1+ {[%clk 0:00:23]} 28. Kh2 {[%clk 0:00:53]}  Bc6 {[%clk 0:00:15]} 29. b7 {[%clk 0:00:48]}  Re1 {[%clk 0:00:15]} 30. Qxe1 {[%clk 0:00:47]} 1-0


[Site "https://www.chess.com"]

[Event "Titled Tuesday Blitz March 29 Late 2022"]
[White "Demchenko, Anton"]
[Black "Iskusnyh, Sergei"]
[WhiteFideId "4160258"]
[BlackFideId "4120027"]
[WhiteElo "2539"]
[BlackElo "2492"]
[Result "1-0"]
[Round "04"]
[TimeControl "180+1"]
[Date "2022.03.29"]
[WhiteClock "0:00:42"]
[BlackClock "0:00:02"]

1. e4 {[%clk 0:02:55]}  e6 {[%clk 0:03:00]} 2. d4 {[%clk 0:02:55]}  d5 {[%clk 0:03:00]} 3. Nd2 {[%clk 0:02:55]}  c5 {[%clk 0:02:59]} 4. exd5 {[%clk 0:02:52]}  Qxd5 {[%clk 0:02:56]} 5. dxc5 {[%clk 0:02:53]}  Nf6 {[%clk 0:02:54]} 6. Ngf3 {[%clk 0:02:53]}  Qxc5 {[%clk 0:02:50]} 7. g3 {[%clk 0:02:53]}  b6 {[%clk 0:02:46]} 8. Bg2 {[%clk 0:02:46]}  Bb7 {[%clk 0:02:46]} 9. O-O {[%clk 0:02:44]}  Be7 {[%clk 0:02:39]} 10. a4 {[%clk 0:02:44]}  O-O {[%clk 0:02:26]} 11. a5 {[%clk 0:02:44]}  Nbd7 {[%clk 0:02:26]} 12. a6 {[%clk 0:02:43]}  Bd5 {[%clk 0:01:38]} 13. c4 {[%clk 0:02:43]}  Bc6 {[%clk 0:01:31]} 14. b4 {[%clk 0:02:39]}  Qxb4 {[%clk 0:01:15]} 15. Ba3 {[%clk 0:02:39]}  Qxa3 {[%clk 0:01:15]} 16. Rxa3 {[%clk 0:02:39]}  Bxa3 {[%clk 0:01:16]} 17. Nd4 {[%clk 0:02:31]}  Bxg2 {[%clk 0:01:15]} 18. Kxg2 {[%clk 0:02:32]}  Bc5 {[%clk 0:01:09]} 19. Nb5 {[%clk 0:02:29]}  Ne5 {[%clk 0:01:07]} 20. Qe2 {[%clk 0:02:20]}  Nc6 {[%clk 0:01:04]} 21. Nb3 {[%clk 0:02:20]}  Be7 {[%clk 0:01:00]} 22. N3d4 {[%clk 0:02:15]}  Nxd4 {[%clk 0:00:56]} 23. Nxd4 {[%clk 0:02:15]}  Rad8 {[%clk 0:00:50]} 24. Nc6 {[%clk 0:02:13]}  Rd7 {[%clk 0:00:50]} 25. Rd1 {[%clk 0:02:13]}  Rc7 {[%clk 0:00:49]} 26. Nd4 {[%clk 0:02:10]}  Rd7 {[%clk 0:00:41]} 27. Nb5 {[%clk 0:02:07]}  Rfd8 {[%clk 0:00:41]} 28. Rxd7 {[%clk 0:02:05]}  Rxd7 {[%clk 0:00:41]} 29. Qf3 {[%clk 0:02:06]}  h5 {[%clk 0:00:27]} 30. Qa8+ {[%clk 0:01:41]}  Kh7 {[%clk 0:00:27]} 31. Nxa7 {[%clk 0:01:41]}  Rd2 {[%clk 0:00:27]} 32. h3 {[%clk 0:01:18]}  Bc5 {[%clk 0:00:27]} 33. Kf1 {[%clk 0:01:18]}  Rxf2+ {[%clk 0:00:25]} 34. Ke1 {[%clk 0:01:19]}  Ra2 {[%clk 0:00:23]} 35. Nb5 {[%clk 0:01:19]}  g6 {[%clk 0:00:08]} 36. a7 {[%clk 0:01:19]}  Nd7 {[%clk 0:00:06]} 37. Qe4 {[%clk 0:00:58]}  Bb4+ {[%clk 0:00:03]} 38. Kf1 {[%clk 0:00:58]}  Nc5 {[%clk 0:00:03]} 39. a8=Q {[%clk 0:00:44]}  Nxe4 {[%clk 0:00:02]} 40. Qxa2 {[%clk 0:00:42]} 1-0


[Site "https://www.chess.com"]

[Event "Titled Tuesday Blitz March 29 Late 2022"]
[White "Derraugh, Geordie"]
[Black "Needleman, Alejandro"]
[WhiteFideId "2603950"]
[BlackFideId "100730"]
[WhiteElo "2116"]
[BlackElo "2231"]
[Result "1/2-1/2"]
[Round "04"]
[TimeControl "180+1"]
[Date "2022.03.30"]
[WhiteClock "0:00:10"]
[BlackClock "0:00:12"]

1. e4 {[%clk 0:03:00]}  c5 {[%clk 0:02:59]} 2. Nf3 {[%clk 0:02:59]}  e6 {[%clk 0:02:58]} 3. d3 {[%clk 0:02:56]}  d5 {[%clk 0:02:57]} 4. Qe2 {[%clk 0:02:56]}  Nf6 {[%clk 0:02:55]} 5. g3 {[%clk 0:02:55]}  Nc6 {[%clk 0:02:54]} 6. Bg2 {[%clk 0:02:56]}  Qa5+ {[%clk 0:02:53]} 7. c3 {[%clk 0:02:50]}  dxe4 {[%clk 0:02:53]} 8. dxe4 {[%clk 0:02:51]}  Be7 {[%clk 0:02:51]} 9. O-O {[%clk 0:02:50]}  O-O {[%clk 0:02:49]} 10. Bf4 {[%clk 0:02:44]}  b5 {[%clk 0:02:42]} 11. Na3 {[%clk 0:02:42]}  Ba6 {[%clk 0:02:38]} 12. c4 {[%clk 0:02:35]}  bxc4 {[%clk 0:02:33]} 13. Nxc4 {[%clk 0:02:35]}  Qb4 {[%clk 0:02:32]} 14. Rfc1 {[%clk 0:02:30]}  Rab8 {[%clk 0:02:15]} 15. b3 {[%clk 0:02:30]}  Rfd8 {[%clk 0:02:01]} 16. Bxb8 {[%clk 0:02:29]}  Rxb8 {[%clk 0:01:58]} 17. Qe3 {[%clk 0:02:04]}  Nd7 {[%clk 0:01:53]} 18. e5 {[%clk 0:01:56]}  Bxc4 {[%clk 0:01:46]} 19. Rxc4 {[%clk 0:01:55]}  Qb6 {[%clk 0:01:45]} 20. Rd1 {[%clk 0:01:53]}  Nf8 {[%clk 0:01:42]} 21. h4 {[%clk 0:01:50]}  h6 {[%clk 0:01:41]} 22. Qe4 {[%clk 0:01:40]}  a5 {[%clk 0:01:39]} 23. Ng5 {[%clk 0:01:24]}  hxg5 {[%clk 0:01:38]} 24. Qxc6 {[%clk 0:01:24]}  Qxc6 {[%clk 0:01:38]} 25. Bxc6 {[%clk 0:01:24]}  gxh4 {[%clk 0:01:39]} 26. gxh4 {[%clk 0:01:25]}  Ng6 {[%clk 0:01:37]} 27. Rd7 {[%clk 0:01:16]}  Bxh4 {[%clk 0:01:29]} 28. Rxc5 {[%clk 0:01:14]}  Rc8 {[%clk 0:01:25]} 29. Ra7 {[%clk 0:00:59]}  Be7 {[%clk 0:01:12]} 30. Rc2 {[%clk 0:00:47]}  Bb4 {[%clk 0:01:04]} 31. Ra8 {[%clk 0:00:30]}  Rxa8 {[%clk 0:01:03]} 32. Bxa8 {[%clk 0:00:30]}  Nxe5 {[%clk 0:01:02]} 33. Be4 {[%clk 0:00:31]}  f5 {[%clk 0:01:00]} 34. Bg2 {[%clk 0:00:30]}  Kf7 {[%clk 0:00:58]} 35. Rc7+ {[%clk 0:00:30]}  Kf6 {[%clk 0:00:58]} 36. Rb7 {[%clk 0:00:28]}  g5 {[%clk 0:00:56]} 37. Rb6 {[%clk 0:00:26]}  Nd3 {[%clk 0:00:51]} 38. Bd5 {[%clk 0:00:24]}  Ke5 {[%clk 0:00:41]} 39. Bxe6 {[%clk 0:00:24]}  Bc5 {[%clk 0:00:41]} 40. Ra6 {[%clk 0:00:16]}  Bxf2+ {[%clk 0:00:35]} 41. Kf1 {[%clk 0:00:17]}  Bd4 {[%clk 0:00:24]} 42. Bc4 {[%clk 0:00:17]}  Nf4 {[%clk 0:00:16]} 43. Rxa5+ {[%clk 0:00:17]}  Ke4 {[%clk 0:00:16]} 44. a4 {[%clk 0:00:11]}  g4 {[%clk 0:00:17]} 45. Ra8 {[%clk 0:00:11]}  g3 {[%clk 0:00:17]} 46. Rg8 {[%clk 0:00:11]}  g2+ {[%clk 0:00:16]} 47. Rxg2 {[%clk 0:00:11]}  Nxg2 {[%clk 0:00:17]} 48. Kxg2 {[%clk 0:00:11]}  Bc3 {[%clk 0:00:17]} 49. Kf2 {[%clk 0:00:11]}  f4 {[%clk 0:00:18]} 50. Be2 {[%clk 0:00:10]}  Bb4 {[%clk 0:00:16]} 51. Bf3+ {[%clk 0:00:10]}  Kd4 {[%clk 0:00:13]} 52. Ke2 {[%clk 0:00:11]}  Kc5 {[%clk 0:00:13]} 53. Kd3 {[%clk 0:00:10]}  Kb6 {[%clk 0:00:13]} 54. Ke4 {[%clk 0:00:11]}  Bd2 {[%clk 0:00:13]} 55. Kd3 {[%clk 0:00:11]}  Be1 {[%clk 0:00:11]} 56. Kc4 {[%clk 0:00:11]}  Ka5 {[%clk 0:00:11]} 57. Be2 {[%clk 0:00:11]}  Bb4 {[%clk 0:00:09]} 58. Bf3 {[%clk 0:00:10]}  Be1 {[%clk 0:00:10]} 59. Be2 {[%clk 0:00:10]}  Bb4 {[%clk 0:00:11]} 60. Bf3 {[%clk 0:00:10]}  Be1 {[%clk 0:00:12]} 1/2-1/2


[Site "https://www.chess.com"]

[Event "Titled Tuesday Blitz March 29 Late 2022"]
[White "Diaz Perez, Michel Alejandro"]
[Black "Hakobyan, Aram"]
[WhiteFideId "3517179"]
[BlackFideId "13306677"]
[WhiteElo "2337"]
[BlackElo "2557"]
[Result "0-1"]
[Round "04"]
[TimeControl "180+1"]
[Date "2022.03.29"]
[WhiteClock "0:00:05"]
[BlackClock "0:02:03"]

1. d4 {[%clk 0:03:00]}  Nf6 {[%clk 0:03:00]} 2. c4 {[%clk 0:02:59]}  d6 {[%clk 0:03:00]} 3. Nc3 {[%clk 0:02:57]}  Nbd7 {[%clk 0:03:01]} 4. Nf3 {[%clk 0:02:55]}  e5 {[%clk 0:03:01]} 5. e4 {[%clk 0:02:44]}  Be7 {[%clk 0:03:01]} 6. Be2 {[%clk 0:02:43]}  O-O {[%clk 0:03:01]} 7. O-O {[%clk 0:02:43]}  c6 {[%clk 0:03:00]} 8. Re1 {[%clk 0:02:41]}  Qe8 {[%clk 0:02:59]} 9. h3 {[%clk 0:02:39]}  Bd8 {[%clk 0:02:58]} 10. Bf1 {[%clk 0:02:37]}  Bb6 {[%clk 0:02:57]} 11. Bg5 {[%clk 0:02:31]}  h6 {[%clk 0:02:57]} 12. Bh4 {[%clk 0:02:31]}  Nh5 {[%clk 0:02:56]} 13. dxe5 {[%clk 0:02:23]}  dxe5 {[%clk 0:02:56]} 14. Na4 {[%clk 0:02:15]}  Ba5 {[%clk 0:02:53]} 15. Re3 {[%clk 0:02:09]}  Nf4 {[%clk 0:02:52]} 16. Bg3 {[%clk 0:02:07]}  Ng6 {[%clk 0:02:50]} 17. a3 {[%clk 0:02:06]}  Qe7 {[%clk 0:02:47]} 18. b4 {[%clk 0:02:05]}  Bc7 {[%clk 0:02:47]} 19. c5 {[%clk 0:02:05]}  Nf6 {[%clk 0:02:45]} 20. Re1 {[%clk 0:01:58]}  Nh5 {[%clk 0:02:45]} 21. Bh2 {[%clk 0:01:58]}  Nhf4 {[%clk 0:02:45]} 22. Nb2 {[%clk 0:01:53]}  Be6 {[%clk 0:02:44]} 23. Nc4 {[%clk 0:01:53]}  Rad8 {[%clk 0:02:45]} 24. Qc2 {[%clk 0:01:52]}  Qf6 {[%clk 0:02:44]} 25. Qc3 {[%clk 0:01:48]}  Rd7 {[%clk 0:02:39]} 26. Rad1 {[%clk 0:01:47]}  Rfd8 {[%clk 0:02:39]} 27. Rxd7 {[%clk 0:01:46]}  Rxd7 {[%clk 0:02:40]} 28. Bg3 {[%clk 0:01:44]}  Kh7 {[%clk 0:02:40]} 29. Nh2 {[%clk 0:01:43]}  h5 {[%clk 0:02:38]} 30. a4 {[%clk 0:01:37]}  h4 {[%clk 0:02:38]} 31. Bxf4 {[%clk 0:01:36]}  Nxf4 {[%clk 0:02:39]} 32. Ng4 {[%clk 0:01:32]}  Bxg4 {[%clk 0:02:39]} 33. hxg4 {[%clk 0:01:32]}  Qg5 {[%clk 0:02:38]} 34. Qf3 {[%clk 0:01:28]}  g6 {[%clk 0:02:38]} 35. Rd1 {[%clk 0:01:24]}  Re7 {[%clk 0:02:33]} 36. b5 {[%clk 0:01:21]}  Ne6 {[%clk 0:02:15]} 37. b6 {[%clk 0:01:17]}  axb6 {[%clk 0:02:16]} 38. cxb6 {[%clk 0:01:18]}  Bb8 {[%clk 0:02:17]} 39. a5 {[%clk 0:00:58]}  Nd4 {[%clk 0:02:17]} 40. Qa3 {[%clk 0:00:59]}  Rd7 {[%clk 0:02:14]} 41. Qf8 {[%clk 0:00:50]}  Qd8 {[%clk 0:02:12]} 42. Qxd8 {[%clk 0:00:47]}  Rxd8 {[%clk 0:02:13]} 43. Kh1 {[%clk 0:00:43]}  Kh6 {[%clk 0:02:11]} 44. Be2 {[%clk 0:00:31]}  Kg5 {[%clk 0:02:11]} 45. Kh2 {[%clk 0:00:27]}  f5 {[%clk 0:02:00]} 46. gxf5 {[%clk 0:00:25]}  gxf5 {[%clk 0:02:01]} 47. exf5 {[%clk 0:00:22]}  Rd5 {[%clk 0:02:02]} 48. Bd3 {[%clk 0:00:14]}  e4+ {[%clk 0:02:01]} 49. Kh3 {[%clk 0:00:08]}  exd3 {[%clk 0:02:01]} 50. Rxd3 {[%clk 0:00:08]}  Nxf5 {[%clk 0:02:02]} 51. Rxd5 {[%clk 0:00:07]}  cxd5 {[%clk 0:02:03]} 52. Na3 {[%clk 0:00:06]}  d4 {[%clk 0:02:03]} 53. Nb5 {[%clk 0:00:06]}  d3 {[%clk 0:02:04]} 54. Nc3 {[%clk 0:00:06]}  d2 {[%clk 0:02:04]} 55. Ne4+ {[%clk 0:00:05]}  Kh5 {[%clk 0:02:04]} 56. Nxd2 {[%clk 0:00:06]}  Nd4 {[%clk 0:02:04]} 57. Nc4 {[%clk 0:00:05]}  Nc6 {[%clk 0:02:05]} 58. g3 {[%clk 0:00:05]}  hxg3 {[%clk 0:02:06]} 59. fxg3 {[%clk 0:00:06]}  Kg5 {[%clk 0:02:06]} 60. Kg2 {[%clk 0:00:05]}  Kg4 {[%clk 0:02:06]} 61. Kf2 {[%clk 0:00:06]}  Bxg3+ {[%clk 0:02:07]} 62. Ke2 {[%clk 0:00:06]}  Kf5 {[%clk 0:02:07]} 63. Kd3 {[%clk 0:00:07]}  Ke6 {[%clk 0:02:06]} 64. Ke4 {[%clk 0:00:07]}  Be1 {[%clk 0:02:04]} 65. a6 {[%clk 0:00:06]}  bxa6 {[%clk 0:02:05]} 66. b7 {[%clk 0:00:06]}  Bg3 {[%clk 0:02:05]} 67. Na5 {[%clk 0:00:04]}  Nxa5 {[%clk 0:02:05]} 68. b8=Q {[%clk 0:00:03]}  Bxb8 {[%clk 0:02:06]} 69. Kd4 {[%clk 0:00:03]}  Nb7 {[%clk 0:02:07]} 70. Kc4 {[%clk 0:00:03]}  a5 {[%clk 0:02:08]} 71. Kb5 {[%clk 0:00:03]}  Bc7 {[%clk 0:02:09]} 72. Ka4 {[%clk 0:00:04]}  Kd6 {[%clk 0:02:08]} 73. Kb5 {[%clk 0:00:05]}  Kd7 {[%clk 0:02:09]} 74. Ka4 {[%clk 0:00:05]}  Kc6 {[%clk 0:02:09]} 75. Kb3 {[%clk 0:00:06]}  Kb5 {[%clk 0:02:10]} 76. Ka3 {[%clk 0:00:07]}  Nc5 {[%clk 0:02:11]} 77. Ka2 {[%clk 0:00:07]}  Be5 {[%clk 0:02:11]} 78. Ka3 {[%clk 0:00:06]}  Kc4 {[%clk 0:02:12]} 79. Ka2 {[%clk 0:00:06]}  Nd3 {[%clk 0:02:13]} 80. Ka3 {[%clk 0:00:06]}  Nb2 {[%clk 0:02:10]} 81. Ka2 {[%clk 0:00:06]}  Kc3 {[%clk 0:02:10]} 82. Ka3 {[%clk 0:00:06]}  Bd6+ {[%clk 0:02:11]} 83. Ka2 {[%clk 0:00:05]}  Kc2 {[%clk 0:02:11]} 84. Ka1 {[%clk 0:00:05]}  Ba3 {[%clk 0:02:08]} 85. Ka2 {[%clk 0:00:06]}  Nc4 {[%clk 0:02:09]} 86. Ka1 {[%clk 0:00:05]}  Bc1 {[%clk 0:02:09]} 87. Ka2 {[%clk 0:00:05]}  Ne5 {[%clk 0:02:00]} 88. Ka1 {[%clk 0:00:04]}  Nd3 {[%clk 0:02:01]} 89. Ka2 {[%clk 0:00:05]}  Nb4+ {[%clk 0:02:02]} 90. Ka1 {[%clk 0:00:05]}  Bb2# {[%clk 0:02:03]} 0-1


[Site "https://www.chess.com"]

[Event "Titled Tuesday Blitz March 29 Late 2022"]
[White "Dylag, Emilia"]
[Black "Mangialardo, Tiago Carvalho"]
[WhiteFideId "21805172"]
[BlackFideId "2130718"]
[WhiteElo "1932"]
[BlackElo "2056"]
[Result "1/2-1/2"]
[Round "04"]
[TimeControl "180+1"]
[Date "2022.03.30"]
[WhiteClock "0:00:47"]
[BlackClock "0:00:04"]

1. d4 {[%clk 0:02:54]}  d5 {[%clk 0:02:46]} 2. c4 {[%clk 0:02:54]}  Nf6 {[%clk 0:02:41]} 3. Nf3 {[%clk 0:02:52]}  e6 {[%clk 0:02:40]} 4. g3 {[%clk 0:02:52]}  Be7 {[%clk 0:02:41]} 5. Bg2 {[%clk 0:02:51]}  O-O {[%clk 0:02:41]} 6. O-O {[%clk 0:02:51]}  Nbd7 {[%clk 0:02:38]} 7. Nc3 {[%clk 0:02:48]}  c5 {[%clk 0:02:30]} 8. cxd5 {[%clk 0:02:47]}  Nxd5 {[%clk 0:02:27]} 9. Nxd5 {[%clk 0:02:46]}  exd5 {[%clk 0:02:27]} 10. dxc5 {[%clk 0:02:47]}  Nxc5 {[%clk 0:02:27]} 11. Qc2 {[%clk 0:02:46]}  Be6 {[%clk 0:02:24]} 12. Rd1 {[%clk 0:02:46]}  Qb6 {[%clk 0:02:17]} 13. Be3 {[%clk 0:02:44]}  Qc6 {[%clk 0:02:08]} 14. Rac1 {[%clk 0:02:42]}  Rac8 {[%clk 0:02:08]} 15. b4 {[%clk 0:02:38]}  Ne4 {[%clk 0:01:54]} 16. Qb3 {[%clk 0:02:34]}  Qb5 {[%clk 0:01:42]} 17. a3 {[%clk 0:02:25]}  Qxe2 {[%clk 0:01:32]} 18. Nd4 {[%clk 0:02:21]}  Qa6 {[%clk 0:01:19]} 19. b5 {[%clk 0:02:12]}  Qxa3 {[%clk 0:01:11]} 20. Qxa3 {[%clk 0:02:08]}  Bxa3 {[%clk 0:01:12]} 21. Ra1 {[%clk 0:02:07]}  Bc5 {[%clk 0:01:05]} 22. Bxe4 {[%clk 0:01:52]}  dxe4 {[%clk 0:00:51]} 23. Nxe6 {[%clk 0:01:51]}  fxe6 {[%clk 0:00:52]} 24. Rd7 {[%clk 0:01:41]}  Rf7 {[%clk 0:00:31]} 25. Rad1 {[%clk 0:01:21]}  Rc7 {[%clk 0:00:22]} 26. Rd8+ {[%clk 0:01:13]}  Rf8 {[%clk 0:00:22]} 27. R8d7 {[%clk 0:00:57]}  Rf7 {[%clk 0:00:13]} 28. Rxc7 {[%clk 0:00:56]}  Rxc7 {[%clk 0:00:13]} 29. Bxc5 {[%clk 0:00:57]}  Rxc5 {[%clk 0:00:13]} 30. Rd8+ {[%clk 0:00:57]}  Kf7 {[%clk 0:00:13]} 31. Rd7+ {[%clk 0:00:58]}  Kf6 {[%clk 0:00:13]} 32. Rxb7 {[%clk 0:00:58]}  h5 {[%clk 0:00:12]} 33. Rxa7 {[%clk 0:00:56]}  Rxb5 {[%clk 0:00:13]} 34. Ra4 {[%clk 0:00:54]}  Kf5 {[%clk 0:00:12]} 35. Kg2 {[%clk 0:00:54]}  g5 {[%clk 0:00:12]} 36. h3 {[%clk 0:00:52]}  e5 {[%clk 0:00:12]} 37. Ra3 {[%clk 0:00:51]}  Rb2 {[%clk 0:00:11]} 38. Re3 {[%clk 0:00:51]}  Rd2 {[%clk 0:00:09]} 39. Re1 {[%clk 0:00:51]}  Rd3 {[%clk 0:00:07]} 40. Re2 {[%clk 0:00:48]}  Rd4 {[%clk 0:00:03]} 41. Re3 {[%clk 0:00:48]}  Rd3 {[%clk 0:00:03]} 42. Re2 {[%clk 0:00:48]}  Rd4 {[%clk 0:00:04]} 43. Kg1 {[%clk 0:00:47]}  Rd1+ {[%clk 0:00:03]} 44. Kh2 {[%clk 0:00:47]}  Rd3 {[%clk 0:00:04]} 45. Kg2 {[%clk 0:00:47]} 1/2-1/2


[Site "https://www.chess.com"]

[Event "Titled Tuesday Blitz March 29 Late 2022"]
[White "Estrada Nieto, Julian"]
[Black "Goltsev, Dmitry"]
[WhiteFideId "5101018"]
[BlackFideId "24176710"]
[WhiteElo "2246"]
[BlackElo "2273"]
[Result "0-1"]
[Round "04"]
[TimeControl "180+1"]
[Date "2022.03.30"]
[WhiteClock "0:01:38"]
[BlackClock "0:02:06"]

1. e4 {[%clk 0:03:00]}  e6 {[%clk 0:02:57]} 2. d4 {[%clk 0:03:00]}  d5 {[%clk 0:02:58]} 3. Nd2 {[%clk 0:03:00]}  c5 {[%clk 0:02:57]} 4. exd5 {[%clk 0:03:00]}  exd5 {[%clk 0:02:57]} 5. Ngf3 {[%clk 0:03:00]}  Nc6 {[%clk 0:02:57]} 6. Bb5 {[%clk 0:03:00]}  Nf6 {[%clk 0:02:58]} 7. O-O {[%clk 0:02:58]}  Be7 {[%clk 0:02:55]} 8. dxc5 {[%clk 0:02:58]}  Bxc5 {[%clk 0:02:52]} 9. Nb3 {[%clk 0:02:57]}  Bb6 {[%clk 0:02:51]} 10. Re1+ {[%clk 0:02:56]}  Be6 {[%clk 0:02:50]} 11. Be3 {[%clk 0:02:56]}  O-O {[%clk 0:02:49]} 12. Nbd4 {[%clk 0:02:40]}  Bd7 {[%clk 0:02:45]} 13. Bd3 {[%clk 0:02:25]}  h6 {[%clk 0:02:42]} 14. c3 {[%clk 0:02:24]}  Re8 {[%clk 0:02:38]} 15. h3 {[%clk 0:02:19]}  Ne4 {[%clk 0:02:36]} 16. Qc2 {[%clk 0:02:09]}  Rc8 {[%clk 0:02:33]} 17. Rad1 {[%clk 0:02:09]}  Nb4 {[%clk 0:02:28]} 18. Qb1 {[%clk 0:02:05]}  Nxd3 {[%clk 0:02:23]} 19. Qxd3 {[%clk 0:02:05]}  Qf6 {[%clk 0:02:18]} 20. Nc2 {[%clk 0:01:58]}  Bxh3 {[%clk 0:02:12]} 21. Bxb6 {[%clk 0:01:54]}  Qxb6 {[%clk 0:02:12]} 22. gxh3 {[%clk 0:01:38]}  Qxf2+ {[%clk 0:02:05]} 23. Kh1 {[%clk 0:01:38]}  Ng3# {[%clk 0:02:06]} 0-1


[Site "https://www.chess.com"]